[Event "30th NATO Chess-ch 2019"]
[Site "Berlin"]
[Date "2019.09.20"]
[Round "7.28"]
[White "Crapulli, Giuseppe"]
[Black "Parker, Glen D"]
[Result "1-0"]
[ECO "C92"]
[WhiteElo "1836"]
[BlackElo "2014"]
[Annotator "NA"]
[PlyCount "79"]
[EventDate "2019.09.16"]
[EventType "swiss"]
[EventCountry "GER"]
[SourceTitle "playchess.com"]
[Source "ChessBase"]
[SourceQuality "1"]
[TimeControl "40/7200:1800"]

1. e4 {[%emt 1:59:58]} e5 2. Nf3 {[%emt 1:59:56]} Nc6 {[%emt 1:59:44]} 3. Bb5 {[%emt 1:59:44]} a6 {[%emt 1:59:50]} 4. Ba4 {[%emt 1:59:36]} b5 5. Bb3 {[%emt 1:58:54]} Nf6 {[%emt 1:58:39]} 6. O-O {[%emt 1:59:29]} Be7 {[%emt 1:58:17]} 7. Re1 {[%emt 1:59:24]} O-O {[%emt 1:57:47]} 8. h3 {[%emt 1:59:21]} d6 {[%emt 1:59:21]} 9. c3 {[%emt 1:57:17]} Bb7 {[%emt 1:56:17]} 10. d4 {[%emt 1:59:07]} h6 {[%emt 1:52:25]} 11. Nbd2 {[%emt 1:58:08]} Re8 {[%emt 1:49:32]} 12. d5 {[%emt 1:55:09]} Nb8 {[%emt 1:40:53]} 13. Nf1 {[%emt 1:54:51]} c5 {[%emt 1:39:35]} 14. dxc6 {[%emt 1:54:38]} Nxc6 {[%emt 1:37:11]} 15. N3h2 {[%emt 1:50:08]} Bf8 {[%emt 1:50:08]} 16. Ng4 {[%emt 1:48:56]} Na5 {[%emt 1:28:56]} 17. Nxf6+ {[%emt 1:28:56]} Qxf6 {[%emt 1:46:11]} 18. Bd5 {[%emt 1:45:53]} Bxd5 {[%emt 1:25:19]} 19. Qxd5 {[%emt 1:25:19]} Nc4 {[%emt 1:20:46]} 20. Ne3 {[%emt 1:38:23]} Qe6 {[%emt 1:11:11]} 21. Rd1 {[%emt 1:11:11]} Nb6 {[%emt 1:35:51]} 22. Qd3 {[%emt 1:34:48]} Rac8 {[%emt 1:34:48]} 23. b3 {[%emt 1:32:30]} Nd7 {[%emt 1:32:30]} 24. Nd5 {[%emt 1:20:21]} Rc6 {[%emt 0:41:20]} 25. Be3 {[%emt 1:14:41]} Nc5 {[%emt 0:40:02]} 26. Qc2 {[%emt 1:12:13]} Rec8 {[%emt 0:31:57]} 27. a4 {[%emt 1:08:57]} bxa4 {[%emt 0:17:24]} 28. b4 {[%emt 1:07:58]} Nb3 {[%emt 1:07:58]} 29. Rxa4 {[%emt 1:07:17]} Nd4 {[%emt 0:14:24]} 30. Bxd4 {[%emt 1:05:04]} exd4 {[%emt 0:14:18]} 31. Rxd4 {[%emt 1:04:54]} g6 {[%emt 1:04:54]} 32. Rd1 {[%emt 1:00:36]} Bg7 {[%emt 0:11:56]} 33. Ra3 {[%emt 0:57:57]} Rc4 {[%emt 0:57:57]} 34. f3 {[%emt 0:55:13]} R8c6 {[%emt 0:06:08]} 35. Rd3 {[%emt 0:39:11]} Kh7 {[%emt 0:05:48]} 36. Qd2 {[%emt 0:05:48]} f5 {[%emt 0:05:27]} 37. exf5 {[%emt 0:35:03]} gxf5 {[%emt 0:03:52]} 38. Re3 {[%emt 0:27:30]} Qf7 {[%emt 0:00:51]} 39. Re7 Qg6 40. b5 {[%emt 0:20:08]} 1-0

[Event "30th NATO Chess-ch 2019"]
[Site "Berlin"]
[Date "2019.09.20"]
[Round "7.29"]
[White "E. Balmaceda, Enrico"]
[Black "Filion, Charles"]
[Result "1-0"]
[ECO "A01"]
[WhiteElo "2006"]
[BlackElo "2199"]
[Annotator "ChessBase"]
[PlyCount "55"]
[EventDate "2019.09.16"]
[EventType "swiss"]
[EventCountry "GER"]
[SourceTitle "playchess.com"]
[Source "ChessBase"]
[SourceQuality "1"]
[TimeControl "40/7200:1800"]

1. b3 {[%emt 2:00:00]} e5 {[%emt 1:59:45]} 2. Bb2 {[%emt 1:59:51]} d6 {[%emt 1:59:51]} 3. g3 {[%emt 1:59:29]} Nf6 {[%emt 1:59:16]} 4. Bg2 {[%emt 1:59:16]} c6 {[%emt 1:58:56]} 5. d3 {[%emt 1:59:17]} Be7 {[%emt 1:58:06]} 6. Nf3 {[%emt 1:59:13]} Nbd7 {[%emt 1:59:13]} 7. Nbd2 {[%emt 1:58:34]} Qc7 {[%emt 1:55:54]} 8. O-O {[%emt 1:57:42]} O-O {[%emt 1:57:42]} 9. c4 {[%emt 1:56:28]} a5 {[%emt 1:51:44]} 10. a3 {[%emt 1:55:51]} Re8 {[%emt 1:55:51]} 11. Qc2 {[%emt 1:53:21]} Bf8 {[%emt 1:53:21]} 12. e3 {[%emt 1:46:26]} d5 {[%emt 1:46:26]} 13. cxd5 {[%emt 1:35:46]} Nxd5 {[%emt 1:34:42]} 14. d4 {[%emt 1:35:17]} exd4 {[%emt 1:32:18]} 15. Nxd4 {[%emt 1:34:45]} N7f6 {[%emt 1:30:55]} 16. Rac1 {[%emt 1:30:55]} Qb6 {[%emt 1:25:30]} 17. Nc4 {[%emt 1:25:30]} Qa6 {[%emt 1:21:32]} 18. e4 {[%emt 0:58:30]} Nb6 {[%emt 1:17:26]} 19. Ne3 {[%emt 0:54:23]} Bd7 {[%emt 1:13:31]} 20. Rfe1 {[%emt 0:49:24]} Rad8 {[%emt 0:49:24]} 21. Bf1 {[%emt 0:37:21]} Qa8 {[%emt 1:09:46]} 22. f3 {[%emt 0:36:31]} Qc8 {[%emt 0:36:31]} 23. Qc3 {[%emt 0:27:58]} Re5 {[%emt 0:27:58]} 24. Ndf5 {[%emt 0:17:05]} Re6 {[%emt 0:54:43]} 25. Qxa5 {[%emt 0:16:01]} Na8 {[%emt 0:51:58]} 26. Bc4 {[%emt 0:51:58]} Ree8 {[%emt 0:49:58]} 27. Qc3 {[%emt 0:12:33]} b5 {[%emt 0:49:18]} 28. Nh6+ {[%emt 0:11:53]} 1-0

[Event "30th NATO Chess-ch 2019"]
[Site "Berlin"]
[Date "2019.09.20"]
[Round "7.30"]
[White "Ivbulis, Martins"]
[Black "Randall, Gordon"]
[Result "0-1"]
[ECO "A43"]
[WhiteElo "1795"]
[BlackElo "1975"]
[Annotator "NA"]
[PlyCount "79"]
[EventDate "2019.09.16"]
[EventType "swiss"]
[EventCountry "GER"]
[SourceTitle "playchess.com"]
[Source "ChessBase"]
[SourceQuality "1"]
[TimeControl "40/7200:1800"]

1. d4 {[%emt 2:00:00]} Nf6 {[%emt 1:59:55]} 2. Nc3 {[%emt 1:59:53]} c5 {[%emt 1:58:31]} 3. d5 {[%emt 1:59:37]} d6 {[%emt 1:59:37]} 4. e4 {[%emt 1:55:39]} g6 {[%emt 1:59:27]} 5. f4 {[%emt 1:58:44]} Bg7 {[%emt 1:51:40]} 6. Nf3 {[%emt 1:58:10]} O-O {[%emt 1:58:10]} 7. a4 {[%emt 1:56:28]} e6 {[%emt 1:42:01]} 8. Bc4 {[%emt 1:49:29]} exd5 {[%emt 1:40:46]} 9. Bxd5 {[%emt 1:48:38]} Nxd5 {[%emt 1:39:56]} 10. Qxd5 {[%emt 1:39:56]} Nc6 {[%emt 1:36:37]} 11. Be3 {[%emt 1:45:24]} Nd4 {[%emt 1:32:06]} 12. Bxd4 {[%emt 1:38:43]} Be6 {[%emt 1:38:43]} 13. Qxb7 {[%emt 1:34:42]} cxd4 {[%emt 1:25:53]} 14. Nb5 {[%emt 1:32:36]} Qa5+ {[%emt 1:32:36]} 15. Kf2 {[%emt 1:32:25]} Rfb8 {[%emt 1:20:52]} 16. Qe7 {[%emt 1:28:29]} a6 {[%emt 1:17:29]} 17. f5 {[%emt 1:18:18]} gxf5 {[%emt 1:12:20]} 18. exf5 {[%emt 1:18:04]} Bxf5 {[%emt 1:11:31]} 19. Nxd6 {[%emt 1:17:17]} Bg6 {[%emt 1:09:15]} 20. Ne4 {[%emt 1:02:59]} Qb6 {[%emt 1:00:52]} 21. a5 {[%emt 1:00:06]} Qc6 {[%emt 0:59:14]} 22. Ned2 {[%emt 0:56:11]} Bf6 {[%emt 0:55:51]} 23. Ne5 {[%emt 0:50:06]} Qxc2 {[%emt 0:50:06]} 24. Qxf6 {[%emt 0:50:00]} Qxd2+ {[%emt 0:50:00]} 25. Kg3 {[%emt 0:49:49]} Rxb2 {[%emt 0:46:12]} 26. Ng4 {[%emt 0:44:15]} Qxg2+ {[%emt 0:40:07]} 27. Kh4 {[%emt 0:40:07]} h5 {[%emt 0:38:01]} 28. Rag1 {[%emt 0:38:01]} Qe4 {[%emt 0:40:12]} 29. Kg5 {[%emt 0:39:29]} Kh7 {[%emt 0:34:39]} 30. Qxf7+ {[%emt 0:38:50]} Bxf7 {[%emt 0:33:37]} 31. Nf6+ {[%emt 0:38:39]} Kg7 {[%emt 0:38:39]} 32. Nxe4 {[%emt 0:31:03]} Bg6 {[%emt 0:28:49]} 33. Kf4 {[%emt 0:34:34]} Rf8+ 34. Ke5 {[%emt 0:34:33]} Re2 {[%emt 0:34:33]} 35. Kd5 {[%emt 0:24:13]} Rf5+ {[%emt 0:32:51]} 36. Kxd4 {[%emt 0:30:52]} Rf4 {[%emt 0:30:52]} 37. Rg5 {[%emt 0:28:15] Rxe4+ 0:28:15 Kc5 0:28:04} Rf5 {[%emt 0:21:17]} 38. Rxf5 {[%emt 0:27:58]} Bxf5 {[%emt 0:21:07] Kb6 0:21:07 Re6+ 0:26:40 Ka7 0:26:36 Bd3 0:26:36} 39. Rg1+ {[%emt 0:26:08] Rg6 0:26:08 Rd1 0:25:09 Bb5 0:25:09 Rd2 0:24:43} Kh6 {[%emt 0:16:44] Kb7 0:24:24} 40. h4 {[%emt 0:24:24] Kc7 0:15:56 h3 0:23:57 Rd8 0:23:54 Kg5 0:13:45 Rd4 0:22:54 Rc6+} 0-1